[Event "Live Chess"]
[Site "Chess.com"]
[Date "2024.06.02"]
[Round "-"]
[White "juniortay"]
[Black "GerardATHart"]
[Result "1-0"]
[WhiteElo "2423"]
[BlackElo "1393"]
[TimeControl "300"]
[EndTime "19:00:18 PDT"]
[Termination "juniortay won by resignation"]

1. e4 {[%clk 0:04:57.3]} 1... e5 {[%clk 0:04:54.7]} 2. Nc3 {[%clk 0:04:56]} 2...
Nf6 {[%clk 0:04:52.3]} 3. f4 {[%clk 0:04:54.4]} 3... d5 {[%clk 0:04:50.1]} 4.
fxe5 {[%clk 0:04:54]} 4... Nxe4 {[%clk 0:04:48.1]} 5. d3 {[%clk 0:04:53.6]} 5...
Nxc3 {[%clk 0:04:45.6]} 6. bxc3 {[%clk 0:04:52.5]} 6... Nc6 {[%clk 0:04:30.1]}
7. Nf3 {[%clk 0:04:51.7]} 7... Bg4 {[%clk 0:04:27.2]} 8. d4 {[%clk 0:04:48.4]}
8... Qd7 {[%clk 0:04:25.1]} 9. Bd3 {[%clk 0:04:47.1]} 9... O-O-O {[%clk
0:04:22.1]} 10. O-O {[%clk 0:04:46]} 10... Be7 {[%clk 0:04:00]} 11. Rb1 {[%clk
0:04:45]} 11... f6 {[%clk 0:03:55.8]} 12. Qe2 {[%clk 0:04:41.8]} 12... fxe5
{[%clk 0:03:51.8]} 13. dxe5 {[%clk 0:04:41.7]} 13... d4 {[%clk 0:03:46.5]} 14.
Ba6 {[%clk 0:04:34.9]} 14... d3 {[%clk 0:03:31.6]} 15. Bxb7+ {[%clk 0:04:32.4]}
15... Kb8 {[%clk 0:03:26.9]} 16. Bxc6+ {[%clk 0:04:30.9]} 1-0

[Event "Live Chess"]
[Site "Chess.com"]
[Date "2024.06.02"]
[Round "-"]
[White "asingardenof"]
[Black "ShanthamGrarks"]
[Result "0-1"]
[WhiteElo "626"]
[BlackElo "1876"]
[TimeControl "300"]
[EndTime "19:01:16 PDT"]
[Termination "ShanthamGrarks won by resignation"]

1. e3 {[%clk 0:04:51.4]} 1... d5 {[%clk 0:04:56.8]} 2. d3 {[%clk 0:04:51.3]}
2... c6 {[%clk 0:04:55.7]} 3. Ne2 {[%clk 0:04:51.2]} 3... e5 {[%clk 0:04:54.7]}
4. Ng3 {[%clk 0:04:51.1]} 4... Bd6 {[%clk 0:04:53.3]} 5. Nd2 {[%clk 0:04:51]}
5... f5 {[%clk 0:04:51.6]} 6. Nb3 {[%clk 0:04:50.9]} 6... Nf6 {[%clk 0:04:50.2]}
7. Bd2 {[%clk 0:04:50.8]} 7... Be6 {[%clk 0:04:47.8]} 8. Be2 {[%clk 0:04:50.7]}
8... Nbd7 {[%clk 0:04:45.3]} 9. O-O {[%clk 0:04:48.4]} 9... O-O {[%clk
0:04:43.9]} 10. Bc3 {[%clk 0:04:41.7]} 10... Qe7 {[%clk 0:04:34.5]} 11. Bf3
{[%clk 0:04:40.2]} 11... e4 {[%clk 0:04:30.2]} 12. dxe4 {[%clk 0:04:38.4]} 12...
fxe4 {[%clk 0:04:29.1]} 13. Be2 {[%clk 0:04:33.9]} 13... Ne5 {[%clk 0:04:16.7]}
14. Bd2 {[%clk 0:04:17.8]} 14... Rad8 {[%clk 0:04:11]} 15. Nd4 {[%clk
0:04:13.2]} 15... Bg4 {[%clk 0:04:07]} 16. f3 {[%clk 0:04:07]} 16... Bc8 {[%clk
0:04:04]} 17. f4 {[%clk 0:04:00.4]} 17... Ng6 {[%clk 0:04:01.2]} 18. Be1 {[%clk
0:03:53.8]} 18... Bc5 {[%clk 0:03:51.2]} 19. f5 {[%clk 0:03:51]} 19... Ne5
{[%clk 0:03:45.8]} 20. Bc3 {[%clk 0:03:31]} 20... Bxd4 {[%clk 0:03:39.3]} 21.
Bxd4 {[%clk 0:03:28]} 21... c5 {[%clk 0:03:37.2]} 22. Bxe5 {[%clk 0:03:26.2]}
22... Qxe5 {[%clk 0:03:36.1]} 23. c3 {[%clk 0:03:13.2]} 23... a6 {[%clk
0:03:33.3]} 24. b3 {[%clk 0:03:08.8]} 24... b5 {[%clk 0:03:32]} 25. Rc1 {[%clk
0:03:03.5]} 25... Bb7 {[%clk 0:03:29.5]} 26. c4 {[%clk 0:02:59.8]} 26... bxc4
{[%clk 0:03:26.6]} 27. bxc4 {[%clk 0:02:59.7]} 27... d4 {[%clk 0:03:25.6]} 28.
exd4 {[%clk 0:02:55.3]} 28... cxd4 {[%clk 0:03:24.4]} 29. Qc2 {[%clk 0:02:35.8]}
29... d3 {[%clk 0:03:21.9]} 30. Bxd3 {[%clk 0:02:31.3]} 30... exd3 {[%clk
0:03:19.4]} 31. Qd2 {[%clk 0:02:30.1]} 31... Ne4 {[%clk 0:03:15]} 32. Rfd1
{[%clk 0:02:30]} 32... Nxd2 {[%clk 0:03:12.9]} 33. Rc3 {[%clk 0:02:29.9]} 33...
Qe3+ {[%clk 0:03:10]} 34. Kh1 {[%clk 0:02:22.9]} 34... Ne4 {[%clk 0:02:38.8]}
35. Rf1 {[%clk 0:02:11.3]} 35... Nxg3+ {[%clk 0:02:34]} 36. hxg3 {[%clk
0:02:08.8]} 36... Qxg3 {[%clk 0:02:31.5]} 37. Rf3 {[%clk 0:02:07.5]} 37... Bxf3
{[%clk 0:02:26.7]} 38. gxf3 {[%clk 0:02:05]} 38... Rxf5 {[%clk 0:02:24.7]} 0-1

[Event "Live Chess"]
[Site "Chess.com"]
[Date "2024.06.02"]
[Round "-"]
[White "MaksymYurii"]
[Black "Dhaydon19"]
[Result "0-1"]
[WhiteElo "958"]
[BlackElo "2680"]
[TimeControl "300"]
[EndTime "19:01:16 PDT"]
[Termination "Dhaydon19 won by checkmate"]

1. e4 {[%clk 0:04:55.3]} 1... d5 {[%clk 0:04:56.5]} 2. f4 {[%clk 0:04:49]} 2...
dxe4 {[%clk 0:04:54.6]} 3. Qe2 {[%clk 0:04:45.3]} 3... Nf6 {[%clk 0:04:53.6]} 4.
Nc3 {[%clk 0:04:42.2]} 4... Qd4 {[%clk 0:04:49.5]} 5. b3 {[%clk 0:04:11.5]} 5...
Bg4 {[%clk 0:04:45.2]} 6. Qe3 {[%clk 0:04:03.7]} 6... Nc6 {[%clk 0:04:43]} 7.
Bb2 {[%clk 0:03:59.6]} 7... e6 {[%clk 0:04:37.4]} 8. Qg3 {[%clk 0:03:54.4]} 8...
Bf5 {[%clk 0:04:30.4]} 9. Nb5 {[%clk 0:03:48.5]} 9... Qd7 {[%clk 0:04:28.6]} 10.
O-O-O {[%clk 0:03:30.6]} 10... a6 {[%clk 0:04:25.3]} 11. Nc3 {[%clk 0:03:24.6]}
11... O-O-O {[%clk 0:04:19.3]} 12. Re1 {[%clk 0:03:10.8]} 12... Qxd2+ {[%clk
0:04:15.3]} 13. Kb1 {[%clk 0:03:05.4]} 13... Nh5 {[%clk 0:04:10.7]} 14. Qh4
{[%clk 0:02:49.3]} 14... Be7 {[%clk 0:04:03.6]} 15. Qf2 {[%clk 0:02:45.4]} 15...
Qxf2 {[%clk 0:04:00.6]} 16. Rd1 {[%clk 0:02:41.2]} 16... Rxd1+ {[%clk
0:03:52.4]} 17. Nxd1 {[%clk 0:02:39.4]} 17... Qxf1 {[%clk 0:03:52]} 18. Kc1
{[%clk 0:02:35.9]} 18... Rd8 {[%clk 0:03:49.7]} 19. g4 {[%clk 0:02:32.4]} 19...
Rxd1# {[%clk 0:03:48.6]} 0-1

[Event "Live Chess"]
[Site "Chess.com"]
[Date "2024.06.02"]
[Round "-"]
[White "RockTroll"]
[Black "NeilDruggan73"]
[Result "1-0"]
[WhiteElo "2195"]
[BlackElo "1778"]
[TimeControl "300"]
[EndTime "19:01:28 PDT"]
[Termination "RockTroll won by resignation"]

1. e4 {[%clk 0:04:57.8]} 1... d6 {[%clk 0:04:58.3]} 2. Nf3 {[%clk 0:04:57.1]}
2... Nf6 {[%clk 0:04:57.1]} 3. Nc3 {[%clk 0:04:55.8]} 3... g6 {[%clk 0:04:56]}
4. d4 {[%clk 0:04:55.2]} 4... Bg7 {[%clk 0:04:54.9]} 5. Be2 {[%clk 0:04:54.6]}
5... O-O {[%clk 0:04:53.6]} 6. O-O {[%clk 0:04:54.3]} 6... b6 {[%clk 0:04:42]}
7. Re1 {[%clk 0:04:51.9]} 7... c5 {[%clk 0:04:39]} 8. Bf1 {[%clk 0:04:46.9]}
8... Nc6 {[%clk 0:04:36.8]} 9. d5 {[%clk 0:04:45.5]} 9... Nb8 {[%clk 0:04:32.7]}
10. h3 {[%clk 0:04:44.6]} 10... Nh5 {[%clk 0:04:27.1]} 11. a4 {[%clk 0:04:42.3]}
11... f5 {[%clk 0:04:22.1]} 12. Ng5 {[%clk 0:04:36.4]} 12... h6 {[%clk
0:04:11.5]} 13. Ne6 {[%clk 0:04:32.8]} 13... Bxe6 {[%clk 0:04:09.9]} 14. dxe6
{[%clk 0:04:32.2]} 14... fxe4 {[%clk 0:03:44.2]} 15. Qd5 {[%clk 0:04:30.9]}
15... Na6 {[%clk 0:03:37.7]} 16. Bxa6 {[%clk 0:04:29.8]} 16... Rf5 {[%clk
0:03:31.1]} 17. Qc6 {[%clk 0:04:25.2]} 17... Qf8 {[%clk 0:03:28.1]} 18. Be3
{[%clk 0:04:21.2]} 18... Bd4 {[%clk 0:03:22.4]} 19. Nd5 {[%clk 0:04:15.2]} 19...
Bxe3 {[%clk 0:03:16.9]} 20. Nxe7+ {[%clk 0:04:13.3]} 20... Kh8 {[%clk
0:03:12.6]} 21. Nxf5 {[%clk 0:04:11.1]} 21... Bxf2+ {[%clk 0:03:09.4]} 22. Kxf2
{[%clk 0:04:10.5]} 22... Qxf5+ {[%clk 0:03:07.3]} 23. Kg1 {[%clk 0:04:10]} 23...
Nf4 {[%clk 0:02:53.5]} 24. Qxa8+ {[%clk 0:04:08.8]} 24... Kg7 {[%clk 0:02:51.3]}
25. Qb7+ {[%clk 0:04:07.7]} 25... Kf6 {[%clk 0:02:48.1]} 26. Qf7+ {[%clk
0:04:06.6]} 26... Kg5 {[%clk 0:02:47.7]} 27. Qxf5+ {[%clk 0:04:05.9]} 27... gxf5
{[%clk 0:02:46.5]} 28. e7 {[%clk 0:04:04.6]} 1-0

[Event "Live Chess"]
[Site "Chess.com"]
[Date "2024.06.02"]
[Round "-"]
[White "RafaelRony"]
[Black "IgorSchukin"]
[Result "0-1"]
[WhiteElo "1074"]
[BlackElo "1744"]
[TimeControl "300"]
[EndTime "19:01:39 PDT"]
[Termination "IgorSchukin won by resignation"]

1. e4 {[%clk 0:04:57.2]} 1... c5 {[%clk 0:04:58.6]} 2. Nf3 {[%clk 0:04:56.6]}
2... e6 {[%clk 0:04:57.6]} 3. d4 {[%clk 0:04:56]} 3... cxd4 {[%clk 0:04:56.4]}
4. Nxd4 {[%clk 0:04:55.4]} 4... Nc6 {[%clk 0:04:55.4]} 5. Nc3 {[%clk 0:04:54]}
5... Qc7 {[%clk 0:04:54.1]} 6. Ndb5 {[%clk 0:04:53.2]} 6... Qb8 {[%clk
0:04:52.2]} 7. Be3 {[%clk 0:04:52.6]} 7... Nf6 {[%clk 0:04:49.2]} 8. Bd3 {[%clk
0:04:29.5]} 8... Be7 {[%clk 0:04:44.9]} 9. O-O {[%clk 0:04:26.7]} 9... O-O
{[%clk 0:04:43.1]} 10. f4 {[%clk 0:04:25.4]} 10... d6 {[%clk 0:04:40.3]} 11. Qf3
{[%clk 0:04:24.1]} 11... Bd7 {[%clk 0:04:38.5]} 12. Na3 {[%clk 0:04:21.2]} 12...
a6 {[%clk 0:04:36.7]} 13. Nab1 {[%clk 0:04:18.3]} 13... b5 {[%clk 0:04:35.3]}
14. a4 {[%clk 0:04:16.5]} 14... b4 {[%clk 0:04:33.3]} 15. Ne2 {[%clk 0:04:16]}
15... Qc7 {[%clk 0:04:29.9]} 16. c3 {[%clk 0:04:15.4]} 16... Rab8 {[%clk
0:04:20]} 17. Nd2 {[%clk 0:04:03.5]} 17... bxc3 {[%clk 0:04:14.7]} 18. Nxc3
{[%clk 0:04:00.7]} 18... Nb4 {[%clk 0:04:10.2]} 19. Rfc1 {[%clk 0:04:00.2]}
19... Nxd3 {[%clk 0:04:08.4]} 0-1

[Event "Live Chess"]
[Site "Chess.com"]
[Date "2024.06.02"]
[Round "-"]
[White "KeithArkell"]
[Black "Cruiseylee78"]
[Result "1-0"]
[WhiteElo "2446"]
[BlackElo "1677"]
[TimeControl "300"]
[EndTime "19:02:36 PDT"]
[Termination "KeithArkell won by resignation"]

1. d4 {[%clk 0:04:56.1]} 1... d6 {[%clk 0:04:56.4]} 2. Nf3 {[%clk 0:04:53.9]}
2... Nd7 {[%clk 0:04:55.4]} 3. d5 {[%clk 0:04:45.8]} 3... c6 {[%clk 0:04:52.4]}
4. c4 {[%clk 0:04:44]} 4... e5 {[%clk 0:04:51.7]} 5. dxe6 {[%clk 0:04:42.9]}
5... fxe6 {[%clk 0:04:49.5]} 6. Nc3 {[%clk 0:04:42.2]} 6... Ngf6 {[%clk
0:04:47.2]} 7. g3 {[%clk 0:04:41.8]} 7... Be7 {[%clk 0:04:45.2]} 8. Bh3 {[%clk
0:04:41.4]} 8... Nf8 {[%clk 0:04:39.5]} 9. O-O {[%clk 0:04:39.7]} 9... h6 {[%clk
0:04:38.5]} 10. e4 {[%clk 0:04:38.9]} 10... g5 {[%clk 0:04:37.2]} 11. e5 {[%clk
0:04:38.1]} 11... g4 {[%clk 0:04:30.9]} 12. exf6 {[%clk 0:04:36.7]} 12... Bxf6
{[%clk 0:04:29.6]} 13. Bxg4 {[%clk 0:04:35.4]} 13... h5 {[%clk 0:04:21.7]} 14.
Bh3 {[%clk 0:04:32.6]} 14... Ng6 {[%clk 0:04:19.2]} 15. Ne4 {[%clk 0:04:31.7]}
15... Rg8 {[%clk 0:04:12.6]} 16. Nxf6+ {[%clk 0:04:29.9]} 16... Qxf6 {[%clk
0:03:25.6]} 17. Bg5 {[%clk 0:04:26.4]} 17... Qxb2 {[%clk 0:03:18.7]} 18. Qxd6
{[%clk 0:04:24.9]} 18... Qg7 {[%clk 0:03:08.4]} 19. Bxe6 {[%clk 0:04:22.8]}
19... Bxe6 {[%clk 0:03:07]} 20. Qxe6+ {[%clk 0:04:22.1]} 1-0

[Event "Live Chess"]
[Site "Chess.com"]
[Date "2024.06.02"]
[Round "-"]
[White "nigelst"]
[Black "WelshTiger"]
[Result "0-1"]
[WhiteElo "1740"]
[BlackElo "2441"]
[TimeControl "300"]
[EndTime "19:03:07 PDT"]
[Termination "WelshTiger won by resignation"]

1. e4 {[%clk 0:04:56.6]} 1... c5 {[%clk 0:04:58.7]} 2. Nf3 {[%clk 0:04:54.6]}
2... d6 {[%clk 0:04:57.5]} 3. Bb5+ {[%clk 0:04:52.3]} 3... Nd7 {[%clk
0:04:55.9]} 4. Ba4 {[%clk 0:04:40.6]} 4... a6 {[%clk 0:04:53.5]} 5. c3 {[%clk
0:04:38.5]} 5... b5 {[%clk 0:04:49.8]} 6. Bb3 {[%clk 0:04:32.6]} 6... Bb7 {[%clk
0:04:47.1]} 7. O-O {[%clk 0:04:27.3]} 7... e6 {[%clk 0:04:40.7]} 8. Bc2 {[%clk
0:04:16.6]} 8... Ngf6 {[%clk 0:04:38.6]} 9. Qe2 {[%clk 0:04:13.5]} 9... Be7
{[%clk 0:04:34.9]} 10. d4 {[%clk 0:04:12]} 10... Qc7 {[%clk 0:04:25.3]} 11. Re1
{[%clk 0:04:08.9]} 11... e5 {[%clk 0:04:23.5]} 12. dxe5 {[%clk 0:04:05.3]} 12...
dxe5 {[%clk 0:04:20.9]} 13. Be3 {[%clk 0:04:00.2]} 13... O-O {[%clk 0:04:18.7]}
14. Nbd2 {[%clk 0:03:55.1]} 14... c4 {[%clk 0:04:14.2]} 15. Bg5 {[%clk
0:03:48.9]} 15... h6 {[%clk 0:04:10.5]} 16. Bxf6 {[%clk 0:03:47.3]} 16... Nxf6
{[%clk 0:04:07]} 17. Rad1 {[%clk 0:03:41.9]} 17... Bc5 {[%clk 0:04:05.6]} 18.
Nf1 {[%clk 0:03:36.4]} 18... Ng4 {[%clk 0:04:00.8]} 19. Ne3 {[%clk 0:03:25.8]}
19... Nxe3 {[%clk 0:03:59.7]} 20. fxe3 {[%clk 0:03:23.1]} 20... Rad8 {[%clk
0:03:56.3]} 21. Rxd8 {[%clk 0:03:21]} 21... Rxd8 {[%clk 0:03:56.2]} 22. Kf2
{[%clk 0:03:17.7]} 22... Bc8 {[%clk 0:03:33.8]} 23. h3 {[%clk 0:03:13.6]} 23...
Be6 {[%clk 0:03:28]} 24. Rd1 {[%clk 0:03:10.2]} 24... f6 {[%clk 0:03:21.4]} 25.
Rxd8+ {[%clk 0:03:07.8]} 25... Qxd8 {[%clk 0:03:21.3]} 26. Qd2 {[%clk
0:03:05.3]} 26... Qxd2+ {[%clk 0:03:18.9]} 27. Nxd2 {[%clk 0:03:03.6]} 27... Kf7
{[%clk 0:03:17.9]} 28. Ke2 {[%clk 0:03:02]} 28... a5 {[%clk 0:03:02.1]} 29. b3
{[%clk 0:02:59.5]} 29... cxb3 {[%clk 0:02:59.7]} 30. axb3 {[%clk 0:02:55.8]}
30... Ke7 {[%clk 0:02:52.1]} 31. c4 {[%clk 0:02:53.6]} 31... b4 {[%clk
0:02:41.3]} 32. Nf3 {[%clk 0:02:37.2]} 32... g6 {[%clk 0:02:35.7]} 33. g4 {[%clk
0:02:30]} 33... h5 {[%clk 0:02:30.6]} 34. gxh5 {[%clk 0:02:26.2]} 34... gxh5
{[%clk 0:02:30.5]} 35. h4 {[%clk 0:02:24.9]} 35... Bg4 {[%clk 0:02:29.7]} 36.
Kf2 {[%clk 0:02:22]} 36... Ke6 {[%clk 0:02:25.9]} 37. Nh2 {[%clk 0:02:17.2]}
37... f5 {[%clk 0:02:24.1]} 38. Nxg4 {[%clk 0:02:10.6]} 38... fxg4 {[%clk
0:02:23]} 39. Bd3 {[%clk 0:02:02.6]} 39... Be7 {[%clk 0:02:21.6]} 40. Kg3 {[%clk
0:01:57.5]} 40... Kd6 {[%clk 0:02:20.9]} 41. Bc2 {[%clk 0:01:49.9]} 41... Kc5
{[%clk 0:02:18.8]} 42. Bd3 {[%clk 0:01:41.6]} 42... Bd8 {[%clk 0:02:09.3]} 43.
Bc2 {[%clk 0:01:28.9]} 43... a4 {[%clk 0:02:06.6]} 44. bxa4 {[%clk 0:01:17.4]}
44... Kxc4 {[%clk 0:02:05.4]} 45. Kf2 {[%clk 0:00:54.1]} 45... Bxh4+ {[%clk
0:02:01.8]} 46. Ke2 {[%clk 0:00:50.5]} 46... Kc3 {[%clk 0:02:01.2]} 47. Bd1
{[%clk 0:00:46.5]} 47... Bd8 {[%clk 0:01:58.3]} 48. Kf2 {[%clk 0:00:42.9]} 48...
b3 {[%clk 0:01:52.2]} 49. Bxb3 {[%clk 0:00:41.1]} 49... Kxb3 {[%clk 0:01:52.1]}
50. a5 {[%clk 0:00:35]} 50... Bxa5 {[%clk 0:01:50.3]} 51. Kg3 {[%clk 0:00:34.9]}
51... Be1+ {[%clk 0:01:48.8]} 0-1

[Event "Live Chess"]
[Site "Chess.com"]
[Date "2024.06.02"]
[Round "-"]
[White "RafaelRony"]
[Black "NeilDruggan73"]
[Result "0-1"]
[WhiteElo "1074"]
[BlackElo "1778"]
[TimeControl "300"]
[EndTime "19:04:57 PDT"]
[Termination "NeilDruggan73 won by resignation"]

1. e4 {[%clk 0:04:58.8]} 1... d6 {[%clk 0:04:58.4]} 2. Nf3 {[%clk 0:04:58.3]}
2... Nf6 {[%clk 0:04:57.5]} 3. Nc3 {[%clk 0:04:56.7]} 3... g6 {[%clk 0:04:55.5]}
4. d4 {[%clk 0:04:55.5]} 4... Bg7 {[%clk 0:04:54.6]} 5. Be3 {[%clk 0:04:50.4]}
5... O-O {[%clk 0:04:49.9]} 6. Bc4 {[%clk 0:04:46.8]} 6... c6 {[%clk 0:04:45.9]}
7. d5 {[%clk 0:04:35.9]} 7... b5 {[%clk 0:04:44.4]} 8. Bb3 {[%clk 0:04:34]} 8...
b4 {[%clk 0:04:42.5]} 9. Ne2 {[%clk 0:04:31.3]} 9... Nxe4 {[%clk 0:04:37.5]} 10.
Ng3 {[%clk 0:04:30]} 10... Nxg3 {[%clk 0:04:31.5]} 11. hxg3 {[%clk 0:04:29.9]}
11... Bxb2 {[%clk 0:04:29.3]} 12. Rb1 {[%clk 0:04:28.2]} 12... Bc3+ {[%clk
0:04:25.9]} 13. Bd2 {[%clk 0:04:27]} 13... c5 {[%clk 0:04:23.7]} 14. Bxc3 {[%clk
0:04:21.3]} 14... bxc3 {[%clk 0:04:21.1]} 15. Qd3 {[%clk 0:04:20.7]} 15... Qa5
{[%clk 0:04:08.2]} 16. Qe3 {[%clk 0:04:18.3]} 16... h5 {[%clk 0:03:53.7]} 17. g4
{[%clk 0:04:13.7]} 17... Bxg4 {[%clk 0:03:50.5]} 18. Ng5 {[%clk 0:04:10.8]}
18... Kg7 {[%clk 0:03:43.7]} 19. f3 {[%clk 0:04:09.7]} 19... f6 {[%clk
0:03:26.7]} 20. Ne6+ {[%clk 0:04:07.8]} 20... Bxe6 {[%clk 0:03:24.2]} 21. dxe6
{[%clk 0:04:07.7]} 21... Qb5 {[%clk 0:03:15.4]} 22. Kf2 {[%clk 0:04:04.8]} 22...
c4 {[%clk 0:03:11.4]} 23. Bxc4 {[%clk 0:03:59.4]} 23... Qxc4 {[%clk 0:03:09.7]}
24. Rxh5 {[%clk 0:03:54.7]} 24... gxh5 {[%clk 0:03:07]} 25. Rh1 {[%clk
0:03:54.3]} 25... Qc5 {[%clk 0:03:05.1]} 26. Qxc5 {[%clk 0:03:50.8]} 0-1

[Event "Live Chess"]
[Site "Chess.com"]
[Date "2024.06.02"]
[Round "-"]
[White "MagnersCarlsberg2870"]
[Black "juniortay"]
[Result "0-1"]
[WhiteElo "1808"]
[BlackElo "2423"]
[TimeControl "300"]
[EndTime "19:05:03 PDT"]
[Termination "juniortay won by resignation"]

1. Nf3 {[%clk 0:04:55.9]} 1... Nf6 {[%clk 0:04:58.6]} 2. g3 {[%clk 0:04:54.3]}
2... g6 {[%clk 0:04:58.5]} 3. Bg2 {[%clk 0:04:53.4]} 3... Bg7 {[%clk 0:04:58.4]}
4. O-O {[%clk 0:04:51.7]} 4... O-O {[%clk 0:04:58.3]} 5. d3 {[%clk 0:04:50.9]}
5... d6 {[%clk 0:04:58.2]} 6. e4 {[%clk 0:04:50.1]} 6... c6 {[%clk 0:04:58.1]}
7. Nbd2 {[%clk 0:04:49.1]} 7... Qa5 {[%clk 0:04:57.7]} 8. Re1 {[%clk 0:04:47.3]}
8... Qh5 {[%clk 0:04:56.8]} 9. h4 {[%clk 0:04:26]} 9... Bg4 {[%clk 0:04:55.4]}
10. Nf1 {[%clk 0:04:19.1]} 10... Nbd7 {[%clk 0:04:49.2]} 11. N1h2 {[%clk
0:04:14.8]} 11... e5 {[%clk 0:04:39.9]} 12. Nxg4 {[%clk 0:04:10.8]} 12... Nxg4
{[%clk 0:04:39.2]} 13. Bh3 {[%clk 0:03:55.9]} 13... f5 {[%clk 0:04:36.9]} 14.
Ng5 {[%clk 0:03:51.5]} 14... Rae8 {[%clk 0:04:30.4]} 15. f3 {[%clk 0:03:43.2]}
15... Nh6 {[%clk 0:04:13.7]} 16. c3 {[%clk 0:03:35]} 16... Kh8 {[%clk
0:04:10.9]} 17. Be3 {[%clk 0:03:18.2]} 17... Nf7 {[%clk 0:03:56.5]} 18. g4
{[%clk 0:03:02.5]} 18... Qxh4 {[%clk 0:03:48.2]} 19. Kg2 {[%clk 0:02:44.7]}
19... Nxg5 {[%clk 0:03:46.1]} 20. Bxg5 {[%clk 0:02:42.8]} 20... Qxg5 {[%clk
0:03:44.9]} 21. Rh1 {[%clk 0:02:41.5]} 21... fxe4 {[%clk 0:03:37.4]} 22. dxe4
{[%clk 0:02:38.7]} 22... Rf6 {[%clk 0:03:29.9]} 23. Qd3 {[%clk 0:02:27.1]} 23...
Ref8 {[%clk 0:03:27.8]} 24. Raf1 {[%clk 0:02:25.7]} 24... Nc5 {[%clk 0:03:25.5]}
25. Qe2 {[%clk 0:02:22.8]} 25... Ne6 {[%clk 0:03:24.6]} 26. Kg3 {[%clk
0:02:17.2]} 26... Qf4+ {[%clk 0:03:20.1]} 27. Kg2 {[%clk 0:02:15.4]} 27... Ng5
{[%clk 0:03:19.6]} 0-1

[Event "Live Chess"]
[Site "Chess.com"]
[Date "2024.06.02"]
[Round "-"]
[White "Crowded_House"]
[Black "gobbles19"]
[Result "1/2-1/2"]
[WhiteElo "1695"]
[BlackElo "2268"]
[TimeControl "300"]
[EndTime "19:05:22 PDT"]
[Termination "Game drawn - insufficient material"]

1. d4 {[%clk 0:04:56.8]} 1... Nf6 {[%clk 0:04:58.4]} 2. Bg5 {[%clk 0:04:54.2]}
2... c5 {[%clk 0:04:56.4]} 3. c3 {[%clk 0:04:52]} 3... Qb6 {[%clk 0:04:54]} 4.
Qb3 {[%clk 0:04:47.8]} 4... e6 {[%clk 0:04:49]} 5. Qxb6 {[%clk 0:04:41.9]} 5...
axb6 {[%clk 0:04:47.8]} 6. Nf3 {[%clk 0:04:35.1]} 6... Nc6 {[%clk 0:04:45.8]} 7.
e3 {[%clk 0:04:31.3]} 7... Ne4 {[%clk 0:04:40.4]} 8. Bh4 {[%clk 0:04:24.2]} 8...
Be7 {[%clk 0:04:24.2]} 9. Bxe7 {[%clk 0:04:22.1]} 9... Kxe7 {[%clk 0:04:24.1]}
10. Nbd2 {[%clk 0:04:21.5]} 10... Nxd2 {[%clk 0:04:17.4]} 11. Nxd2 {[%clk
0:04:17.3]} 11... d5 {[%clk 0:04:16.7]} 12. Be2 {[%clk 0:04:02.8]} 12... Bd7
{[%clk 0:04:15.8]} 13. O-O {[%clk 0:04:00.2]} 13... f6 {[%clk 0:04:10]} 14. Nf3
{[%clk 0:03:54.8]} 14... e5 {[%clk 0:04:01.8]} 15. dxe5 {[%clk 0:03:52.5]} 15...
fxe5 {[%clk 0:04:01.7]} 16. Rfd1 {[%clk 0:03:41.2]} 16... e4 {[%clk 0:04:00.1]}
17. Nd2 {[%clk 0:03:35]} 17... Be6 {[%clk 0:03:57.5]} 18. Rac1 {[%clk
0:03:27.9]} 18... Rxa2 {[%clk 0:03:54.4]} 19. Rb1 {[%clk 0:03:15.6]} 19... Rf8
{[%clk 0:03:43.9]} 20. Bb5 {[%clk 0:03:13.1]} 20... Ne5 {[%clk 0:03:40.2]} 21.
Nb3 {[%clk 0:03:04.3]} 21... c4 {[%clk 0:03:29.9]} 22. Nd4 {[%clk 0:02:57.5]}
22... Nd3 {[%clk 0:03:29]} 23. Nxe6 {[%clk 0:02:47.1]} 23... Kxe6 {[%clk
0:03:26.6]} 24. Rf1 {[%clk 0:02:24.2]} 24... Ra5 {[%clk 0:03:22.7]} 25. Bxc4
{[%clk 0:02:17]} 25... dxc4 {[%clk 0:03:21.9]} 26. b3 {[%clk 0:02:14.7]} 26...
Ne5 {[%clk 0:02:58.4]} 27. bxc4 {[%clk 0:02:07.2]} 27... Nxc4 {[%clk 0:02:58.3]}
28. Rb4 {[%clk 0:02:06.1]} 28... Rc5 {[%clk 0:02:52.4]} 29. Rd1 {[%clk
0:01:59.7]} 29... Ra8 {[%clk 0:02:43]} 30. h3 {[%clk 0:01:51.7]} 30... Ke5
{[%clk 0:02:34.8]} 31. Rd7 {[%clk 0:01:45.1]} 31... Ra1+ {[%clk 0:02:32.8]} 32.
Kh2 {[%clk 0:01:43.8]} 32... Nd2 {[%clk 0:02:28.7]} 33. Kg3 {[%clk 0:01:29.1]}
33... Nf1+ {[%clk 0:02:27.2]} 34. Kh4 {[%clk 0:01:26.6]} 34... Rxc3 {[%clk
0:02:21.6]} 35. Rxb6 {[%clk 0:01:19.8]} 35... Rc6 {[%clk 0:02:14]} 36. Rxc6
{[%clk 0:01:09.5]} 36... bxc6 {[%clk 0:02:11.6]} 37. Rxg7 {[%clk 0:01:08.3]}
37... Ra2 {[%clk 0:02:05.1]} 38. Rxh7 {[%clk 0:01:06]} 38... Rxf2 {[%clk
0:02:04.1]} 39. Rh5+ {[%clk 0:01:05.1]} 39... Kd6 {[%clk 0:01:57.7]} 40. Rh6+
{[%clk 0:01:03]} 40... Kd5 {[%clk 0:01:56.9]} 41. Rh5+ {[%clk 0:01:01.2]} 41...
Kc4 {[%clk 0:01:55.8]} 42. Re5 {[%clk 0:00:59.3]} 42... Kd3 {[%clk 0:01:54.7]}
43. Rc5 {[%clk 0:00:57.7]} 43... Nxe3 {[%clk 0:01:50.9]} 44. Rxc6 {[%clk
0:00:54.2]} 44... Nxg2+ {[%clk 0:01:50.1]} 45. Kg3 {[%clk 0:00:51.9]} 45... Ra2
{[%clk 0:01:39]} 46. Rd6+ {[%clk 0:00:50.5]} 46... Ke3 {[%clk 0:01:36.7]} 47.
Rb6 {[%clk 0:00:47.3]} 47... Ne1 {[%clk 0:01:33.7]} 48. Rb3+ {[%clk 0:00:45.9]}
48... Nd3 {[%clk 0:01:32.6]} 49. h4 {[%clk 0:00:40.3]} 49... Rg2+ {[%clk
0:01:31.5]} 50. Kxg2 {[%clk 0:00:38.6]} 50... Kf4 {[%clk 0:01:27.5]} 51. Rxd3
{[%clk 0:00:29.9]} 51... exd3 {[%clk 0:01:26.3]} 52. Kf2 {[%clk 0:00:28.8]}
52... Kg4 {[%clk 0:01:24.8]} 53. Ke3 {[%clk 0:00:27.5]} 53... Kxh4 {[%clk
0:01:24.7]} 54. Kxd3 {[%clk 0:00:26.4]} 1/2-1/2